bitfinex-derivatives/quotes_ETHF0:USTF0_20241026
["timestamp","ask_amount","ask_price","bid_price","bid_amount"]
[1729960190902,0.40557,2468.5,2468.4,0.81947]
[1729960191799,0.40557,2468.5,2468.4,0.4139]
[1729960192394,0.40557,2468.5,2468.4,0.81948]
[1729960192596,0.40557,2468.5,2468.4,0.4139]
[1729960192908,0.40557,2468.5,2468.4,0.81948]
[1729960193506,0.40557,2468.5,2468.4,0.4139]
[1729960194704,0.8585,2468.7,2468.4,0.4139]
[1729960194904,0.40555,2468.6,2468.5,0.40556]
[1729960195103,0.40555,2468.6,2468.5,0.81546]
[1729960197011,0.40555,2468.6,2468.5,0.4099]
[1729960197310,0.40555,2468.6,2468.5,0.81547]
[1729960198407,0.40552,2468.8,2468.7,0.40551]
[1729960199210,0.8809,2469.0,2468.5,0.4099]
[1729960199412,0.40551,2468.9,2468.8,0.40551]
[1729960200108,0.40551,2468.9,2468.4,1.42785]
[1729960200109,0.40552,2468.8,2468.7,0.40552]
[1729960200409,0.8809,2469.0,2468.4,1.42785]
[1729960200604,0.40551,2468.9,2468.4,1.42785]
[1729960200909,0.40552,2468.8,2468.7,0.40553]
[1729960201103,0.40551,2468.9,2468.7,0.40553]
[1729960201303,0.40551,2468.9,2468.8,0.4293]
[1729960201710,0.40551,2468.9,2468.8,0.8516]
[1729960201911,0.4111,2469.3,2468.8,0.8516]
[1729960202109,0.8313,2469.3,2468.9,0.40549]
[1729960202307,0.40548,2469.1,2468.9,0.40549]
[1729960202508,0.8313,2469.3,2469.0,0.40548]
[1729960202704,0.40547,2469.2,2469.0,0.40548]
[1729960202905,0.40547,2469.1,2469.0,0.40548]
[1729960203408,0.8313,2469.3,2468.8,0.8516]
[1729960203607,0.40548,2469.1,2468.8,0.8516]
[1729960204112,0.40548,2469.1,2468.9,0.40549]
[1729960204716,0.8313,2469.3,2468.8,0.8516]
[1729960205109,0.4055,2468.9,2468.8,0.8516]
[1729960205314,0.4055,2468.9,2468.8,1.25712]
[1729960205510,0.40548,2469.1,2468.9,0.40549]
[1729960205719,0.8313,2469.3,2468.8,0.8516]
[1729960205914,0.40548,2469.1,2468.9,0.40549]
[1729960206111,0.40549,2469.0,2468.8,1.25711]
[1729960206614,0.4055,2468.9,2468.8,0.8516]
[1729960206814,1.8449,2469.3,2468.8,0.8516]
[1729960207316,0.40548,2469.1,2468.9,0.40548]
[1729960208519,0.8313,2469.3,2467.6,2.02853]
[1729960208818,0.40561,2468.3,2468.1,0.40563]
[1729960209315,1.01394,2468.5,2467.9,0.40566]
[1729960209506,0.40563,2468.2,2468.0,0.40565]
[1729960209910,0.40561,2468.3,2468.0,0.39543821]
[1729960210113,0.40562,2468.2,2467.8,0.865]
[1729960210310,0.40563,2468.2,2467.9,0.40565]
[1729960210514,0.40563,2468.2,2468.0,0.4267]
[1729960210810,0.40563,2468.2,2468.0,0.83234]
[1729960211719,0.40563,2468.2,2468.0,0.4267]
[1729960212119,0.40562,2468.2,2468.0,0.83235]
[1729960212718,0.40561,2468.3,2468.0,0.83235]
[1729960212918,0.40561,2468.3,2468.1,0.40563]
[1729960213121,0.265,2468.6,2468.0,0.4267]
[1729960213418,0.40562,2468.2,2468.0,0.83233]
[1729960214119,0.265,2468.6,2468.0,0.4267]
[1729960214320,1.01394,2468.5,2468.0,0.4267]
[1729960215322,0.40563,2468.2,2468.0,0.83234]
[1729960217016,1.01399,2468.4,2468.0,0.4267]
[1729960217218,0.40567,2467.9,2467.7,0.81769]
[1729960217524,1.8495,2468.3,2467.7,0.8237]
[1729960217525,0.8355,2468.3,2467.7,0.8237]
[1729960217723,0.8355,2468.3,2467.7,0.4117]
[1729960217724,0.40568,2467.8,2467.7,0.4117]
[1729960217924,1.01404,2468.2,2467.7,0.81739]
[1729960217925,0.40568,2467.9,2467.7,0.81739]
[1729960218314,0.40568,2467.9,2467.8,0.4135]
[1729960219115,0.40571,2467.7,2467.5,0.40573]
[1729960219319,0.40571,2467.7,2467.5,1.26003]
[1729960219520,0.4412,2467.8,2467.5,0.8543]
[1729960219720,0.40571,2467.7,2467.5,1.26003]
[1729960220125,0.865,2468.6,2467.6,4.0528]
[1729960220424,13.12326,2469.3,2467.6,4.0528]
[1729960220425,0.84679,2468.4,2468.2,0.40561]
[1729960220626,0.40557,2468.5,2468.3,0.831]
[1729960221021,0.40557,2468.5,2468.3,0.4254]
[1729960221222,0.40558,2468.4,2468.3,0.4254]
[1729960222425,0.40557,2468.5,2468.3,0.831]
[1729960222826,0.4412,2468.6,2468.3,0.4254]
[1729960223033,0.40558,2468.4,2468.3,0.4254]
[1729960223625,0.4412,2468.6,2468.3,0.4254]
[1729960224025,0.40554,2468.7,2468.5,0.40556]
[1729960224223,0.40558,2468.4,2468.3,0.4254]
[1729960224720,5.06516,2468.4,2467.5,0.865]
[1729960224927,1.1228,2468.3,2467.8,0.4312]
[1729960225119,0.40566,2468.0,2467.8,0.4312]
[1729960225318,1.1228,2468.3,2467.8,0.4312]
[1729960225520,0.40566,2467.9,2467.8,0.4312]
[1729960226127,1.1228,2468.3,2467.6,0.431]
[1729960226328,0.40567,2467.9,2467.7,0.8369]
[1729960226627,0.40567,2467.9,2467.7,0.4312]
[1729960226928,0.40568,2467.8,2467.7,0.4312]
[1729960228421,2.13682,2468.3,2467.7,0.4312]
[1729960228622,0.40567,2467.9,2467.7,0.4312]
[1729960229529,0.40562,2468.2,2467.9,0.40565]
[1729960229826,0.4205,2468.3,2467.7,0.4312]
[1729960230026,0.82611,2468.3,2468.1,0.40563]
[1729960230228,0.82611,2468.3,2468.2,0.4485]
[1729960233434,0.40557,2468.5,2468.2,0.4485]
[1729960233627,0.4152,2468.7,2468.3,0.4236]
[1729960233932,0.40556,2468.6,2468.5,0.40557]
[1729960234435,0.40556,2468.6,2467.8,0.4236]
[1729960234436,4.0512,2468.6,2467.8,0.4236]
[1729960234735,1.42905,2468.7,2467.8,1.873]
[1729960234936,0.40562,2468.2,2468.1,0.40562]
[1729960235437,1.01389,2468.6,2468.1,0.40562]
[1729960235941,0.40561,2468.3,2468.1,0.40562]
[1729960236128,0.40558,2468.4,2468.3,0.40559]
[1729960236329,1.3028,2468.8,2467.9,1.01417]
[1729960236536,0.4056,2468.4,2468.3,0.4056]
[1729960237337,0.4056,2468.4,2468.2,0.4056]
[1729960237545,0.4056,2468.4,2468.3,0.4056]
[1729960237830,0.4494,2468.7,2467.9,1.01417]
[1729960238037,0.4494,2468.7,2467.8,0.8588]
[1729960238239,1.01388,2468.6,2468.1,0.40562]
[1729960238438,0.4056,2468.3,2467.9,0.40566]
[1729960238639,0.4056,2468.3,2468.2,0.40561]
[1729960239943,0.40562,2468.2,2468.0,0.40563]
[1729960240141,1.01388,2468.6,2468.1,0.40563]
[1729960240142,0.40561,2468.3,2468.1,0.40563]
[1729960240339,0.40561,2468.3,2468.2,0.4106]
[1729960240941,0.40563,2468.2,2468.0,0.40564]
[1729960241139,0.40565,2468.0,2467.9,0.4106]
[1729960243343,0.4346,2468.1,2467.6,0.4414]
[1729960243541,0.4167,2468.0,2467.7,0.4071]
[1729960243730,0.40568,2467.8,2467.7,0.4071]
[1729960245245,0.4167,2468.0,2467.4,1.05191934]
[1729960245540,0.414,2467.7,2467.4,0.64618934]
[1729960245935,0.414,2467.7,2467.4,0.4413]
[1729960246140,0.81971,2467.7,2467.5,0.40573]
[1729960247146,0.81971,2467.7,2467.6,0.4266]
[1729960248144,0.4167,2468.0,2467.6,0.4266]
[1729960248349,0.414,2468.2,2467.7,0.84128]
[1729960248546,0.40568,2467.9,2467.7,0.84128]
[1729960249250,1.1036,2468.2,2467.7,0.4356]
[1729960249449,0.40566,2468.0,2467.8,0.40568]
[1729960249751,0.40567,2467.9,2467.7,0.84128]
[1729960250050,1.1036,2468.2,2467.7,0.4356]
[1729960250250,0.40569,2467.8,2467.6,0.83231]
[1729960250846,2.11765,2468.2,2467.6,0.4266]
[1729960251139,0.40568,2467.9,2467.7,0.4057]
[1729960252648,0.40568,2467.9,2467.8,0.40568]
[1729960252848,0.40566,2468.0,2467.8,0.40568]
[1729960253451,0.40567,2467.9,2467.7,0.40568]
[1729960253651,0.40567,2467.9,2467.8,0.4277]
[1729960254251,0.8384,2468.2,2467.8,0.4277]
[1729960254447,0.8384,2468.2,2467.9,0.85185]
[1729960254645,0.40563,2468.1,2467.9,0.4462]
[1729960254847,0.40563,2468.1,2468.0,0.81705]
[1729960255360,0.2651,2468.5,2468.0,0.4114]
[1729960255560,0.40559,2468.4,2468.3,0.4056]
[1729960255764,0.4204,2468.5,2468.3,0.4056]
[1729960255963,0.82598,2468.5,2468.4,0.4114]
[1729960256563,0.82598,2468.5,2468.4,0.81698]
[1729960256965,0.82598,2468.5,2468.4,0.4114]
[1729960260461,0.40565,2468.0,2467.9,0.85185]
[1729960260669,0.40569,2467.8,2467.7,0.40568]
[1729960260968,1.01402,2468.3,2467.5,0.8515]
[1729960261168,0.40565,2468.0,2467.9,0.40565]
[1729960261867,0.40567,2467.9,2467.8,0.40568]
[1729960262270,0.40565,2468.0,2467.9,0.40566]
[1729960262870,0.4445,2468.1,2467.5,1.43741]
[1729960263072,0.85014,2468.1,2467.6,1.01429]
[1729960263272,0.40565,2468.0,2467.6,0.40571]
[1729960263474,0.85013,2468.1,2467.9,0.40565]
[1729960263871,0.40562,2468.2,2468.0,0.40564]
[1729960264071,0.8394,2468.5,2468.1,0.452]
[1729960264270,0.4284,2468.5,2468.1,0.452]
[1729960264573,0.40558,2468.4,2468.2,0.40561]
[1729960265172,0.40558,2468.4,2468.1,0.452]
[1729960265375,0.40558,2468.4,2468.2,0.4056]
[1729960265975,0.4284,2468.5,2468.1,0.452]
[1729960266474,0.83398,2468.5,2468.3,0.40559]
[1729960267171,0.4284,2468.5,2468.3,0.40559]
[1729960267477,0.40559,2468.4,2468.2,0.40561]
[1729960267672,0.40559,2468.4,2468.3,0.4056]
[1729960267873,0.4284,2468.5,2468.1,0.452]
[1729960268075,0.40561,2468.3,2468.1,0.85762]
[1729960268377,0.40561,2468.3,2468.2,0.40561]
[1729960268678,0.4284,2468.5,2468.1,0.85763]
[1729960268879,0.40561,2468.2,2468.1,0.452]
[1729960269178,0.40565,2468.0,2467.8,0.40567]
[1729960269475,0.40565,2468.0,2467.7,0.40568]
[1729960269774,1.7207,2468.3,2467.7,0.40568]
[1729960269971,0.40567,2467.9,2467.7,0.40569]
[1729960270878,0.40566,2468.0,2467.7,0.40569]
[1729960271080,0.40567,2467.9,2467.7,0.40569]
[1729960271279,0.40567,2467.9,2467.5,1.7278]
[1729960271579,0.40568,2467.9,2467.6,0.4057]
[1729960271774,0.4216,2468.1,2467.5,0.8628]
[1729960271973,0.40568,2467.8,2467.6,0.4057]
[1729960272174,0.40567,2467.9,2467.7,0.4057]
[1729960272472,0.4216,2468.1,2467.5,0.8628]
[1729960272679,0.40567,2467.9,2467.7,0.40569]
[1729960273680,0.4216,2468.1,2467.5,0.8628]
[1729960273981,0.40566,2468.0,2467.7,0.40568]
[1729960274278,0.40567,2467.9,2467.7,0.40568]
[1729960275178,0.4216,2468.1,2467.7,0.40568]
[1729960275481,0.40567,2467.9,2467.7,0.40568]
[1729960275682,0.4216,2468.1,2467.5,0.8628]
[1729960275879,0.4216,2468.1,2467.5,1.87712]
[1729960276182,0.40561,2468.2,2468.0,0.40564]
[1729960276582,0.7067,2468.3,2467.7,1.01421]
[1729960276583,0.40561,2468.3,2468.1,0.40562]
[1729960276774,0.85649,2468.4,2468.2,0.85261]
[1729960277179,0.40562,2468.2,2468.0,0.40564]
[1729960277377,0.85651,2468.3,2468.0,0.40564]
[1729960277576,0.85651,2468.3,2467.9,0.447]
[1729960277577,0.4509,2468.3,2468.2,0.40561]
[1729960277779,0.40557,2468.5,2468.0,0.4088]
[1729960277974,0.4506,2468.6,2468.0,0.4088]
[1729960278184,0.85616,2468.6,2468.3,0.40558]
[1729960278682,0.4506,2468.6,2468.1,0.4299]
[1729960278887,0.85615,2468.6,2468.1,0.4299]
[1729960279076,0.40555,2468.6,2468.1,0.4299]
[1729960279274,0.7162,2468.8,2468.1,0.4299]
[1729960279474,0.40556,2468.6,2468.4,0.40558]
[1729960279673,0.40556,2468.6,2468.5,0.8573]
[1729960280286,0.4509,2468.8,2468.5,0.8573]
[1729960280582,0.423,2469.0,2468.5,0.8573]
[1729960280784,0.40554,2468.7,2468.5,1.26285]
[1729960281080,0.4226,2468.9,2468.5,0.8573]
[1729960281385,0.40551,2468.9,2468.7,0.40553]
[1729960281685,0.40552,2468.8,2468.6,0.83934]
[1729960282080,0.4226,2469.1,2468.6,0.83934]
[1729960282283,0.40553,2468.7,2468.6,0.83935]
[1729960282482,0.40553,2468.7,2468.6,0.4338]
[1729960282684,0.40553,2468.8,2468.6,0.83935]
[1729960283387,0.40548,2469.0,2468.6,0.4338]
[1729960283687,0.40553,2468.8,2468.6,0.83935]
[1729960284580,0.4226,2469.1,2468.6,0.4338]
[1729960284786,0.40553,2468.8,2468.6,0.83934]
[1729960284977,0.4226,2469.1,2468.6,0.4338]
[1729960285183,0.4055,2468.9,2468.7,0.40552]
[1729960285382,0.4226,2469.1,2468.6,0.4338]
[1729960285585,0.6806,2469.2,2469.0,0.40548]
[1729960285586,0.40546,2469.2,2469.0,0.40548]
[1729960285789,0.40546,2469.2,2469.1,0.4261]
[1729960286783,2.1278,2469.6,2469.1,0.4261]
[1729960286991,0.40544,2469.3,2469.1,0.4261]
[1729960287184,0.40543,2469.4,2469.2,0.40545]
[1729960287384,1.1143,2469.6,2469.2,0.40545]
[1729960287583,0.40543,2469.4,2469.2,0.40545]
[1729960287889,0.40543,2469.4,2469.1,0.4261]
[1729960288081,0.8492,2469.6,2469.1,0.4261]
[1729960288279,0.40542,2469.4,2469.3,0.40543]
[1729960288489,0.40541,2469.5,2469.3,0.40543]
[1729960288888,0.40534,2469.9,2469.5,0.4054]
[1729960289085,0.40537,2469.7,2469.6,0.4502]
[1729960291590,1.21333,2470.0,2469.4,0.83981]
[1729960291591,0.4054,2469.5,2469.4,0.4344]
[1729960291988,0.40542,2469.4,2469.3,0.83643]
[1729960292394,0.40542,2469.4,2469.3,0.8749]
[1729960292590,0.40541,2469.5,2469.3,1.28032]
[1729960292787,0.40541,2469.5,2469.4,0.40542]
[1729960292988,0.40541,2469.5,2469.3,0.8749]
[1729960293186,0.40541,2469.5,2469.4,0.40542]
[1729960293391,0.8829,2469.7,2469.3,0.8749]
[1729960293793,0.40539,2469.6,2469.4,0.40542]
[1729960294293,0.8829,2469.7,2469.3,0.8749]
[1729960294495,0.4395,2469.7,2469.3,0.8749]
[1729960294793,0.40541,2469.5,2469.3,1.28032]
[1729960295193,0.4054,2469.6,2469.4,0.40542]
[1729960295595,0.4395,2469.7,2469.3,0.8749]
[1729960295792,0.40541,2469.5,2469.3,1.28032]
[1729960296097,0.40539,2469.6,2469.4,0.40541]
[1729960296393,0.40541,2469.5,2469.3,1.28033]
[1729960296990,1.01347,2469.6,2468.4,1.01396]
[1729960297189,0.40549,2469.0,2468.9,0.4262]
[1729960297389,0.40549,2469.0,2468.9,0.846]
[1729960298296,0.40553,2468.7,2468.5,0.84816]
[1729960298799,0.40553,2468.7,2468.5,0.40556]
[1729960299593,1.01369,2469.1,2468.5,0.40556]
[1729960299799,0.40553,2468.7,2468.5,0.40556]
[1729960300000,0.40552,2468.8,2468.4,0.8413]
[1729960300302,0.40552,2468.8,2468.5,0.40557]
[1729960300603,0.40555,2468.6,2468.4,1.24688]
[1729960300898,0.40554,2468.7,2468.4,1.24688]
[1729960301196,0.40551,2468.9,2468.7,0.40553]
[1729960301393,0.40549,2469.0,2468.7,0.40552]
[1729960301597,0.40551,2468.9,2468.6,0.40554]
[1729960301797,0.40547,2469.1,2468.8,0.40551]
[1729960301998,0.40548,2469.0,2468.9,0.424]
[1729960303697,0.40547,2469.1,2468.9,0.8295]
[1729960303898,0.4407,2469.2,2468.9,0.8295]
[1729960304201,0.40548,2469.0,2468.9,0.424]
[1729960304397,0.40548,2469.0,2468.9,0.8295]
[1729960304899,0.4407,2469.2,2468.9,0.424]
[1729960305100,0.428,2469.4,2469.1,0.40545]
[1729960305396,0.40545,2469.2,2469.0,0.4227]
[1729960305601,0.428,2469.4,2469.0,0.4227]
[1729960306101,0.40547,2469.1,2469.0,0.82817]
[1729960306301,0.40545,2469.2,2469.1,0.40546]
[1729960306503,0.40546,2469.2,2469.1,0.40547]
[1729960307204,0.40545,2469.3,2469.1,0.40547]
[1729960307404,0.40545,2469.2,2469.1,0.40547]
[1729960307899,0.40545,2469.3,2469.1,0.40547]
[1729960308407,1.42403,2469.5,2469.1,0.40547]
[1729960308602,1.42403,2469.5,2468.9,0.424]
[1729960308905,0.40548,2469.1,2469.0,0.40548]
[1729960309408,0.40548,2469.1,2468.9,0.424]
[1729960309608,0.40548,2469.0,2468.9,0.424]
[1729960311300,0.40555,2468.6,2467.4,13.09081499]
[1729960311502,0.4274,2468.9,2468.4,0.4322]
[1729960311700,0.40552,2468.8,2468.6,0.40554]
[1729960312307,0.4274,2469.1,2468.5,0.8333]
[1729960313107,0.40549,2469.0,2468.8,0.40551]
[1729960313401,0.40549,2469.0,2468.9,0.8374]
[1729960313805,0.40549,2469.0,2468.9,1.2429]
[1729960314006,0.83288,2469.1,2469.0,0.40548]
[1729960314499,0.83288,2469.1,2468.9,0.8374]
[1729960314705,0.40548,2469.0,2468.9,1.2429]
[1729960315407,0.83288,2469.1,2468.9,1.2429]
[1729960316005,0.4274,2469.1,2468.9,0.8374]
[1729960316208,0.40548,2469.0,2468.9,0.8374]
[1729960316708,0.40548,2469.0,2468.9,1.2429]
[1729960317403,0.40548,2469.0,2468.9,0.8374]
[1729960317602,0.40548,2469.0,2468.9,1.2429]
[1729960317996,0.40548,2469.0,2468.9,0.8374]
[1729960319700,0.40548,2469.0,2468.9,1.2429]
[1729960320608,0.40545,2469.2,2469.0,0.40548]
[1729960320909,0.40548,2469.1,2468.9,0.8374]
[1729960321108,0.40548,2469.1,2469.0,0.40548]
[1729960321505,0.82854,2469.3,2468.9,0.8374]
[1729960321712,0.8451,2469.6,2469.0,0.41]
[1729960321909,0.40543,2469.4,2469.2,0.40544]
[1729960322513,0.40543,2469.4,2469.3,0.449]
[1729960322716,0.8451,2469.6,2469.3,0.449]
[1729960323116,0.4054,2469.5,2469.4,0.4281]
[1729960323614,0.40536,2469.8,2469.6,0.40538]
[1729960323813,0.4054,2469.6,2469.4,0.83352]
[1729960324115,0.40538,2469.7,2469.5,0.40539]
[1729960324415,0.4142,2469.9,2469.6,0.40538]
[1729960324416,0.40536,2469.8,2469.6,0.40538]
[1729960324911,0.40542,2469.4,2469.3,0.449]
[1729960325916,0.40539,2469.6,2469.4,0.40541]
[1729960326215,0.40537,2469.7,2469.5,0.4054]
[1729960327414,0.4142,2469.9,2469.3,0.449]
[1729960327615,0.40539,2469.6,2469.3,0.449]
[1729960327818,0.40539,2469.6,2469.4,0.40541]
[1729960328410,0.4142,2469.9,2469.3,0.449]
[1729960328608,0.40537,2469.7,2469.5,0.40539]
[1729960328808,0.40539,2469.6,2469.3,0.449]
[1729960329009,0.40542,2469.4,2469.3,0.449]
[1729960329304,0.4151,2469.5,2469.3,0.449]
[1729960329503,0.82051,2469.5,2469.3,0.85443]
[1729960329707,0.4151,2469.5,2469.3,0.449]
[1729960329908,0.40542,2469.4,2469.3,0.449]
[1729960330414,0.40545,2469.2,2469.1,0.8556]
[1729960331718,0.40544,2469.3,2469.1,1.26106]
[1729960333317,0.4506,2469.4,2469.1,1.26106]
[1729960333519,0.40543,2469.3,2469.1,1.26106]
[1729960334516,0.40545,2469.3,2469.1,1.26106]
[1729960335822,0.4506,2469.4,2469.1,0.8556]
[1729960336120,0.85603,2469.4,2469.2,0.40544]
[1729960336319,0.40543,2469.4,2469.2,0.40544]
[1729960336619,0.40543,2469.4,2469.1,0.8556]
[1729960336821,0.40543,2469.4,2469.2,0.40545]
[1729960337317,1.21331,2470.0,2469.3,4.0496]
[1729960337524,0.40539,2469.6,2469.4,0.82811]
[1729960337719,0.40538,2469.7,2469.5,0.4214]
[1729960337919,0.40538,2469.7,2469.5,0.82679]
[1729960338120,0.40538,2469.6,2469.5,0.8546]
[1729960338321,0.4353,2469.8,2469.5,0.8546]
[1729960338523,0.84066,2469.8,2469.6,0.40537]
[1729960338919,0.40538,2469.7,2469.5,1.25999]
[1729960339113,0.4353,2469.8,2469.5,0.8546]
[1729960339318,0.84066,2469.8,2469.6,0.40538]
[1729960339718,0.4353,2469.8,2469.5,0.8546]
[1729960339923,0.40535,2469.8,2469.6,0.40538]
[1729960340323,0.6436,2470.0,2469.5,0.8546]
[1729960340524,0.40535,2469.9,2469.7,0.40537]
[1729960340715,0.40536,2469.8,2469.6,0.40538]
[1729960341131,0.40535,2469.9,2469.7,0.40536]
[1729960341622,0.6436,2470.0,2469.5,0.8546]
[1729960341823,0.40535,2469.9,2469.7,0.40536]
[1729960342326,0.40535,2469.8,2469.7,0.40536]
[1729960342525,0.40535,2469.9,2469.8,0.40535]
[1729960342825,0.6436,2470.0,2469.7,0.40536]
[1729960343023,0.2,2470.0,2469.5,0.8546]
[1729960343229,0.60533,2470.0,2469.8,0.40534]
[1729960343522,0.60533,2470.0,2469.9,1.2854]
[1729960344327,0.60533,2470.0,2469.9,1.69074]
[1729960345024,0.60532,2470.0,2469.9,1.69074]
[1729960345327,0.60532,2470.0,2469.9,0.849]
[1729960346918,0.60532,2470.0,2469.9,1.25434]
[1729960347322,0.60532,2470.0,2469.9,0.849]
[1729960349027,0.60532,2470.0,2469.9,1.25434]
[1729960350826,0.60532,2470.0,2469.9,0.849]
[1729960353934,0.60532,2470.0,2469.9,1.25434]
[1729960354137,0.60532,2470.0,2469.9,0.849]
[1729960355125,0.60532,2470.0,2469.9,1.25434]
[1729960355537,0.60532,2470.0,2469.9,0.849]
[1729960357139,0.60532,2470.0,2469.9,1.25434]
[1729960358044,0.60532,2470.0,2469.9,0.849]
[1729960358244,0.60532,2470.0,2469.9,1.25434]
[1729960359646,0.60532,2470.0,2469.9,0.849]
[1729960359943,0.60532,2470.0,2469.9,1.25434]
[1729960360145,0.60532,2470.0,2469.9,0.849]
[1729960360343,0.60532,2470.0,2469.9,1.25434]
[1729960360550,0.60532,2470.0,2469.9,0.849]
[1729960360849,0.60532,2470.0,2469.9,1.25434]
[1729960361841,4.2488,2470.0,2469.5,0.4126]
[1729960362046,0.40538,2469.6,2469.5,0.818]
[1729960362442,0.40538,2469.7,2469.5,0.818]
[1729960362641,0.4054,2469.5,2469.4,0.4377]
[1729960363448,0.4054,2469.5,2469.4,0.8823]
[1729960363646,0.40539,2469.6,2469.4,1.28771]
[1729960365154,0.4054,2469.5,2469.4,0.8823]
[1729960365448,0.4054,2469.5,2469.4,1.28772]
[1729960365648,0.2646,2469.8,2469.4,0.8823]
[1729960365848,0.2646,2469.8,2469.4,1.28771]
[1729960366051,0.4054,2469.5,2469.4,1.28771]
[1729960366250,0.4054,2469.6,2469.4,1.28771]
[1729960367851,0.2646,2469.8,2469.4,1.28771]
[1729960368149,0.4054,2469.5,2469.4,1.28771]
[1729960368452,0.4054,2469.5,2469.4,0.8823]
[1729960368649,1.01344,2469.7,2469.2,0.4072]
[1729960368950,0.40543,2469.3,2469.2,0.4072]
[1729960369353,0.40545,2469.2,2469.1,0.4133]
[1729960369753,0.40545,2469.2,2469.1,0.81877]
[1729960370050,0.40545,2469.3,2469.1,0.81877]
[1729960370553,0.40545,2469.2,2469.1,0.81877]
[1729960370953,0.4368,2469.4,2469.1,0.81877]
[1729960371154,0.40544,2469.3,2469.1,0.81877]
[1729960371453,0.40545,2469.2,2469.1,0.81877]
[1729960371653,0.40544,2469.3,2469.1,0.81877]
[1729960372557,0.4368,2469.4,2469.1,0.4133]
[1729960372759,0.40544,2469.3,2469.1,0.81876]
[1729960373158,0.40544,2469.3,2469.1,0.4133]
[1729960373357,0.40544,2469.3,2469.2,0.40545]
[1729960373655,0.40544,2469.3,2469.1,0.81876]
[1729960374056,0.40545,2469.2,2469.1,0.4133]
[1729960374357,0.40544,2469.3,2469.1,0.81875]
[1729960375065,1.01337,2469.9,2469.1,0.4133]
[1729960375259,0.40538,2469.7,2469.5,0.40539]
[1729960375458,0.40538,2469.7,2469.6,1.2567]
[1729960375856,0.622,2470.0,2469.6,1.2567]
[1729960376053,0.40536,2469.8,2469.6,1.66207]
[1729960376258,0.40535,2469.9,2469.7,0.40537]
[1729960376653,0.60533,2470.0,2469.8,0.40535]
[1729960376859,0.2,2470.0,2469.6,1.2567]
[1729960377060,0.40534,2469.9,2469.7,0.40536]
[1729960377264,0.60533,2470.0,2469.8,0.40535]
[1729960378160,0.2,2470.0,2469.7,0.40535]
[1729960378360,0.40535,2469.8,2469.7,0.40535]
[1729960378864,0.60533,2470.0,2469.8,0.40535]
[1729960379057,0.40535,2469.8,2469.7,0.40536]
[1729960379261,0.40535,2469.9,2469.7,0.40536]
[1729960380465,0.60533,2470.0,2469.8,0.40534]
[1729960380865,0.2,2470.0,2469.8,0.40534]
[1729960381161,4.0488,2469.9,2468.5,2.02783]
[1729960381361,0.4054,2469.6,2469.0,2.3319]
[1729960381668,0.40543,2469.4,2469.2,0.40545]
[1729960381861,0.4244,2469.7,2469.0,2.1822]
[1729960382060,0.4054,2469.6,2469.4,0.40542]
[1729960382263,0.4054,2469.6,2469.5,0.4205]
[1729960384962,0.4244,2469.7,2469.5,0.4205]
[1729960385166,0.40538,2469.7,2469.6,0.40538]
[1729960385668,0.40538,2469.6,2469.5,0.82589]
[1729960385869,0.40538,2469.7,2469.6,0.40538]
[1729960386370,0.40538,2469.7,2469.6,1.29398]
[1729960386668,0.4458,2469.9,2469.6,0.8886]
[1729960386871,0.40534,2469.9,2469.8,0.40534]
[1729960387370,0.2,2470.0,2469.6,0.8886]
[1729960387567,0.40536,2469.8,2469.7,0.40536]
[1729960387967,0.2,2470.0,2469.6,0.8886]
[1729960388165,0.2,2470.0,2469.2,0.53276438]
[1729960388166,2.43233,2469.6,2468.3,0.40559]
[1729960388465,0.40561,2468.3,2468.1,0.85203]
[1729960388672,0.40558,2468.4,2468.2,0.40561]
[1729960389271,0.40559,2468.4,2468.2,0.40561]
[1729960389471,0.40559,2468.4,2468.1,0.85202]
[1729960390570,0.4217,2468.7,2468.1,0.85202]
[1729960390771,0.40559,2468.4,2468.1,0.85202]
[1729960390971,1.01372,2469.0,2468.1,0.85202]
[1729960390972,0.2,2470.0,2468.2,4.0512]
[1729960391168,0.4501,2469.7,2468.4,1.01393]
[1729960391363,0.40549,2469.0,2468.7,0.40553]
[1729960391676,1.01355,2469.4,2468.6,0.4431]
[1729960391869,0.40549,2469.0,2468.7,0.40553]
[1729960392068,0.40549,2469.0,2468.7,0.40552]
[1729960392267,0.40549,2469.0,2468.7,0.84212]
[1729960392474,0.40551,2468.9,2468.7,0.4366]
[1729960392772,0.4055,2469.0,2468.7,0.84213]
[1729960392973,0.8718,2469.3,2468.7,0.84212]
[1729960393175,0.40549,2469.0,2468.7,0.84212]
[1729960394477,0.40547,2469.1,2468.8,0.4055]
[1729960394877,0.40546,2469.2,2468.9,0.40549]
[1729960397178,0.8718,2469.3,2468.7,0.4366]
[1729960397378,0.40549,2469.0,2468.7,0.4366]
[1729960397579,0.40549,2469.0,2468.8,0.40552]
[1729960397879,0.40549,2469.0,2468.8,4.45592]
[1729960398776,0.8718,2469.3,2468.8,4.0504]
[1729960398981,0.40549,2469.0,2468.7,0.84212]
[1729960399282,1.01365,2469.2,2468.7,0.4366]
[1729960399481,0.2648,2469.2,2468.7,0.4366]
[1729960399782,0.40549,2469.0,2468.8,0.40552]
[1729960400081,0.6961,2469.2,2468.7,0.4366]